[Event "Titled Tuesday Blitz January 31 Late 2023"]
[White "Omelja, Artem"]
[Black "Kostiukov, Alexandr"]
[WhiteFideId "14119846"]
[BlackFideId "14108100"]
[WhiteElo "2446"]
[BlackElo "2271"]
[Result "0-1"]
[Round "11"]
[TimeControl "180+2"]
[Date "2023.02.01"]
[WhiteClock "0:00:06"]
[BlackClock "0:00:11"]

1. e4 {[%clk 0:03:00]}  c5 {[%clk 0:02:59]} 2. Nf3 {[%clk 0:02:59]}  g6 {[%clk 0:02:59]} 3. c3 {[%clk 0:02:56]}  Bg7 {[%clk 0:02:59]} 4. d4 {[%clk 0:02:57]}  cxd4 {[%clk 0:02:59]} 5. cxd4 {[%clk 0:02:58]}  d5 {[%clk 0:03:00]} 6. e5 {[%clk 0:02:58]}  Nc6 {[%clk 0:03:00]} 7. Bb5 {[%clk 0:02:59]}  Bg4 {[%clk 0:03:00]} 8. h3 {[%clk 0:02:56]}  Bxf3 {[%clk 0:02:59]} 9. Qxf3 {[%clk 0:02:56]}  Nh6 {[%clk 0:02:56]} 10. Nc3 {[%clk 0:02:54]}  Nf5 {[%clk 0:02:51]} 11. Be3 {[%clk 0:02:53]}  O-O {[%clk 0:02:49]} 12. Bxc6 {[%clk 0:02:53]}  bxc6 {[%clk 0:02:49]} 13. g4 {[%clk 0:02:53]}  Nxe3 {[%clk 0:02:49]} 14. fxe3 {[%clk 0:02:53]}  f6 {[%clk 0:02:50]} 15. e6 {[%clk 0:02:46]}  Qd6 {[%clk 0:02:49]} 16. e4 {[%clk 0:02:45]}  Qxe6 {[%clk 0:02:49]} 17. O-O-O {[%clk 0:02:44]}  dxe4 {[%clk 0:02:41]} 18. Qxe4 {[%clk 0:02:45]}  Qxe4 {[%clk 0:02:36]} 19. Nxe4 {[%clk 0:02:46]}  f5 {[%clk 0:02:32]} 20. gxf5 {[%clk 0:02:47]}  gxf5 {[%clk 0:02:32]} 21. Nc5 {[%clk 0:02:48]}  Rf6 {[%clk 0:02:17]} 22. Rhg1 {[%clk 0:02:45]}  Kf7 {[%clk 0:02:11]} 23. Rdf1 {[%clk 0:02:39]}  Rd8 {[%clk 0:02:08]} 24. Nb3 {[%clk 0:02:32]}  e6 {[%clk 0:02:01]} 25. Kc2 {[%clk 0:02:30]}  Rg6 {[%clk 0:02:02]} 26. Rxg6 {[%clk 0:02:25]}  hxg6 {[%clk 0:02:03]} 27. Rd1 {[%clk 0:02:17]}  e5 {[%clk 0:01:59]} 28. dxe5 {[%clk 0:02:12]}  Rxd1 {[%clk 0:01:59]} 29. Kxd1 {[%clk 0:02:12]}  Bxe5 {[%clk 0:02:00]} 30. Na5 {[%clk 0:02:11]}  Bxb2 {[%clk 0:01:53]} 31. Nxc6 {[%clk 0:02:11]}  a6 {[%clk 0:01:53]} 32. Ke2 {[%clk 0:02:03]}  Ke6 {[%clk 0:01:53]} 33. Kf3 {[%clk 0:01:57]}  Be5 {[%clk 0:01:40]} 34. Ke3 {[%clk 0:01:34]}  Kd6 {[%clk 0:01:40]} 35. Nb4 {[%clk 0:01:31]}  a5 {[%clk 0:01:39]} 36. Nd3 {[%clk 0:01:31]}  g5 {[%clk 0:01:37]} 37. Kf3 {[%clk 0:01:28]}  Kd5 {[%clk 0:01:37]} 38. Ne1 {[%clk 0:01:12]}  Kd4 {[%clk 0:01:33]} 39. Nc2+ {[%clk 0:01:11]}  Kc3 {[%clk 0:01:27]} 40. Ne3 {[%clk 0:01:12]}  f4 {[%clk 0:01:24]} 41. Nd5+ {[%clk 0:01:11]}  Kb2 {[%clk 0:01:23]} 42. a4 {[%clk 0:01:06]}  Kb3 {[%clk 0:01:21]} 43. Ke4 {[%clk 0:01:01]}  Kxa4 {[%clk 0:01:13]} 44. Kxe5 {[%clk 0:00:55]}  f3 {[%clk 0:01:11]} 45. Ke4 {[%clk 0:00:44]}  f2 {[%clk 0:01:08]} 46. Ne3 {[%clk 0:00:44]}  Kb3 {[%clk 0:01:08]} 47. Kf3 {[%clk 0:00:43]}  a4 {[%clk 0:01:09]} 48. Kxf2 {[%clk 0:00:33]}  a3 {[%clk 0:01:09]} 49. Kf3 {[%clk 0:00:34]}  a2 {[%clk 0:01:07]} 50. Kg4 {[%clk 0:00:35]}  a1=Q {[%clk 0:01:07]} 51. Kxg5 {[%clk 0:00:36]}  Qc1 {[%clk 0:00:55]} 52. Kf4 {[%clk 0:00:35]}  Qh1 {[%clk 0:00:51]} 53. Kg3 {[%clk 0:00:30]}  Qg1+ {[%clk 0:00:48]} 54. Ng2 {[%clk 0:00:30]}  Kc4 {[%clk 0:00:49]} 55. h4 {[%clk 0:00:30]}  Kd4 {[%clk 0:00:49]} 56. Kf3 {[%clk 0:00:28]}  Qf1+ {[%clk 0:00:47]} 57. Kg3 {[%clk 0:00:28]}  Ke4 {[%clk 0:00:47]} 58. h5 {[%clk 0:00:28]}  Qf3+ {[%clk 0:00:45]} 59. Kh2 {[%clk 0:00:27]}  Qxh5+ {[%clk 0:00:40]} 60. Kg3 {[%clk 0:00:28]}  Qg5+ {[%clk 0:00:39]} 61. Kf2 {[%clk 0:00:27]}  Qg4 {[%clk 0:00:27]} 62. Ne1 {[%clk 0:00:25]}  Qf4+ {[%clk 0:00:24]} 63. Kg2 {[%clk 0:00:09]}  Qd2+ {[%clk 0:00:17]} 64. Kf1 {[%clk 0:00:09]}  Kf4 {[%clk 0:00:15]} 65. Ng2+ {[%clk 0:00:05]}  Kg3 {[%clk 0:00:14]} 66. Ne3 {[%clk 0:00:06]}  Qd3+ {[%clk 0:00:11]} 0-1


[Site "https://www.chess.com"]

[Event "Titled Tuesday Blitz January 31 Late 2023"]
[White "Szente Varga, Fruzsina"]
[Black "ArchibaldCerveza29"]
[WhiteFideId "712264"]
[WhiteElo "2075"]
[BlackElo "2532"]
[Result "0-1"]
[Round "11"]
[TimeControl "180+2"]
[Date "2023.02.01"]
[WhiteClock "0:00:14"]
[BlackClock "0:01:34"]

1. e4 {[%clk 0:03:00]}  e5 {[%clk 0:02:59]} 2. Nf3 {[%clk 0:03:00]}  Nc6 {[%clk 0:02:59]} 3. Bb5 {[%clk 0:03:01]}  g6 {[%clk 0:02:59]} 4. O-O {[%clk 0:03:00]}  Bg7 {[%clk 0:02:59]} 5. c3 {[%clk 0:02:59]}  a6 {[%clk 0:02:59]} 6. Ba4 {[%clk 0:02:52]}  Nge7 {[%clk 0:02:59]} 7. d4 {[%clk 0:02:50]}  exd4 {[%clk 0:03:00]} 8. cxd4 {[%clk 0:02:51]}  b5 {[%clk 0:03:01]} 9. Bb3 {[%clk 0:02:50]}  O-O {[%clk 0:03:00]} 10. Bg5 {[%clk 0:02:47]}  h6 {[%clk 0:02:58]} 11. Be3 {[%clk 0:02:43]}  d6 {[%clk 0:02:55]} 12. Qd2 {[%clk 0:02:40]}  Kh7 {[%clk 0:02:55]} 13. Nc3 {[%clk 0:02:38]}  Bg4 {[%clk 0:02:54]} 14. Ne1 {[%clk 0:02:31]}  Na5 {[%clk 0:02:51]} 15. Bc2 {[%clk 0:02:14]}  Nc4 {[%clk 0:02:51]} 16. Qc1 {[%clk 0:02:11]}  Nc6 {[%clk 0:02:29]} 17. b3 {[%clk 0:02:05]}  Nxe3 {[%clk 0:02:23]} 18. fxe3 {[%clk 0:02:05]}  Nxd4 {[%clk 0:02:19]} 19. Bd1 {[%clk 0:01:25]}  Bxd1 {[%clk 0:02:12]} 20. Qxd1 {[%clk 0:01:26]}  Ne6 {[%clk 0:01:58]} 21. Rc1 {[%clk 0:01:24]}  Qg5 {[%clk 0:01:58]} 22. Nd5 {[%clk 0:01:21]}  c6 {[%clk 0:01:55]} 23. Nf3 {[%clk 0:01:14]}  Qg4 {[%clk 0:01:51]} 24. Rxc6 {[%clk 0:01:07]}  Qxe4 {[%clk 0:01:46]} 25. Rxd6 {[%clk 0:01:06]}  Rad8 {[%clk 0:01:44]} 26. Ne7 {[%clk 0:00:44]}  Qxe3+ {[%clk 0:01:41]} 27. Kh1 {[%clk 0:00:44]}  Rxd6 {[%clk 0:01:39]} 28. Qxd6 {[%clk 0:00:45]}  Rd8 {[%clk 0:01:39]} 29. Qxa6 {[%clk 0:00:39]}  Qc5 {[%clk 0:01:34]} 30. Nc6 {[%clk 0:00:32]}  Rd6 {[%clk 0:01:33]} 31. Nfe5 {[%clk 0:00:14]}  Bxe5 {[%clk 0:01:33]} 32. Rxf7+ {[%clk 0:00:14]}  Bg7 {[%clk 0:01:34]} 0-1


[Site "https://www.chess.com"]

[Event "Titled Tuesday Blitz January 31 Late 2023"]
[White "Lucassen, Mickey"]
[Black "Ibadov, Dashgyn"]
[WhiteFideId "12919110"]
[BlackFideId "24107514"]
[WhiteElo "2023"]
[BlackElo "2391"]
[Result "0-1"]
[Round "11"]
[TimeControl "180+2"]
[Date "2023.02.01"]
[WhiteClock "0:00:20"]
[BlackClock "0:00:32"]

1. d4 {[%clk 0:03:00]}  d5 {[%clk 0:02:59]} 2. Nc3 {[%clk 0:02:58]}  Nf6 {[%clk 0:02:56]} 3. Bf4 {[%clk 0:02:58]}  a6 {[%clk 0:02:55]} 4. e3 {[%clk 0:02:58]}  e6 {[%clk 0:02:52]} 5. g4 {[%clk 0:02:56]}  Bb4 {[%clk 0:02:50]} 6. f3 {[%clk 0:02:54]}  c5 {[%clk 0:02:41]} 7. a3 {[%clk 0:02:54]}  Bxc3+ {[%clk 0:02:36]} 8. bxc3 {[%clk 0:02:55]}  O-O {[%clk 0:02:19]} 9. h4 {[%clk 0:02:52]}  Nc6 {[%clk 0:02:15]} 10. h5 {[%clk 0:02:48]}  Qa5 {[%clk 0:02:08]} 11. Qd2 {[%clk 0:02:46]}  e5 {[%clk 0:01:58]} 12. dxe5 {[%clk 0:02:40]}  Nd7 {[%clk 0:01:57]} 13. c4 {[%clk 0:02:21]}  Qxd2+ {[%clk 0:01:58]} 14. Kxd2 {[%clk 0:02:21]}  dxc4 {[%clk 0:01:55]} 15. Bxc4 {[%clk 0:02:22]}  Ndxe5 {[%clk 0:01:55]} 16. Be2 {[%clk 0:02:22]}  Rd8+ {[%clk 0:01:48]} 17. Kc3 {[%clk 0:02:21]}  b5 {[%clk 0:01:46]} 18. Rd1 {[%clk 0:02:00]}  Be6 {[%clk 0:01:41]} 19. Nh3 {[%clk 0:01:57]}  b4+ {[%clk 0:01:41]} 20. axb4 {[%clk 0:01:57]}  cxb4+ {[%clk 0:01:42]} 21. Kb2 {[%clk 0:01:57]}  a5 {[%clk 0:01:15]} 22. Ng5 {[%clk 0:01:41]}  Bc4 {[%clk 0:01:14]} 23. Bxc4 {[%clk 0:01:30]}  Nxc4+ {[%clk 0:01:15]} 24. Kb3 {[%clk 0:01:30]}  Nb6 {[%clk 0:01:15]} 25. Bc7 {[%clk 0:01:23]}  a4+ {[%clk 0:01:08]} 26. Ka2 {[%clk 0:01:23]}  Rxd1 {[%clk 0:00:51]} 27. Rxd1 {[%clk 0:01:24]}  Nc4 {[%clk 0:00:52]} 28. e4 {[%clk 0:01:09]}  b3+ {[%clk 0:00:49]} 29. cxb3 {[%clk 0:01:08]}  Nb4+ {[%clk 0:00:49]} 30. Kb1 {[%clk 0:01:07]}  axb3 {[%clk 0:00:50]} 31. Rd4 {[%clk 0:00:54]}  Nc2 {[%clk 0:00:50]} 32. Rxc4 {[%clk 0:00:44]}  Na3+ {[%clk 0:00:49]} 33. Kb2 {[%clk 0:00:45]}  Nxc4+ {[%clk 0:00:50]} 34. Kxb3 {[%clk 0:00:45]}  h6 {[%clk 0:00:45]} 35. Kxc4 {[%clk 0:00:39]}  hxg5 {[%clk 0:00:41]} 36. Kd3 {[%clk 0:00:35]}  f6 {[%clk 0:00:41]} 37. f4 {[%clk 0:00:22]}  Rc8 {[%clk 0:00:35]} 38. Bd6 {[%clk 0:00:20]}  Rd8 {[%clk 0:00:32]} 0-1


[Site "https://www.chess.com"]

[Event "Titled Tuesday Blitz January 31 Late 2023"]
[White "Alfaro, William"]
[Black "Ehlvest, Jaan"]
[WhiteFideId "6100457"]
[BlackFideId "4500016"]
[WhiteElo "2134"]
[BlackElo "2530"]
[Result "0-1"]
[Round "11"]
[TimeControl "180+2"]
[Date "2023.02.01"]
[WhiteClock "0:02:17"]
[BlackClock "0:02:04"]

1. e4 {[%clk 0:03:00]}  c5 {[%clk 0:02:59]} 2. Nf3 {[%clk 0:02:58]}  Nc6 {[%clk 0:02:58]} 3. d4 {[%clk 0:02:56]}  cxd4 {[%clk 0:02:58]} 4. Nxd4 {[%clk 0:02:57]}  Nf6 {[%clk 0:02:58]} 5. Nc3 {[%clk 0:02:56]}  e5 {[%clk 0:02:58]} 6. Ndb5 {[%clk 0:02:55]}  d6 {[%clk 0:02:58]} 7. Bg5 {[%clk 0:02:55]}  a6 {[%clk 0:02:57]} 8. Na3 {[%clk 0:02:55]}  b5 {[%clk 0:02:56]} 9. Bxf6 {[%clk 0:02:54]}  gxf6 {[%clk 0:02:56]} 10. Nd5 {[%clk 0:02:55]}  f5 {[%clk 0:02:56]} 11. c3 {[%clk 0:02:54]}  Bg7 {[%clk 0:02:54]} 12. Bd3 {[%clk 0:02:52]}  Be6 {[%clk 0:02:50]} 13. Nc2 {[%clk 0:02:47]}  Bxd5 {[%clk 0:02:48]} 14. exd5 {[%clk 0:02:47]}  Ne7 {[%clk 0:02:48]} 15. O-O {[%clk 0:02:47]}  h5 {[%clk 0:02:44]} 16. Ne3 {[%clk 0:02:42]}  e4 {[%clk 0:02:44]} 17. Be2 {[%clk 0:02:42]}  f4 {[%clk 0:02:41]} 18. Nc2 {[%clk 0:02:40]}  Ng6 {[%clk 0:02:39]} 19. a4 {[%clk 0:02:39]}  Rb8 {[%clk 0:02:23]} 20. axb5 {[%clk 0:02:36]}  axb5 {[%clk 0:02:23]} 21. Nb4 {[%clk 0:02:36]}  Qg5 {[%clk 0:02:19]} 22. Kh1 {[%clk 0:02:34]}  Be5 {[%clk 0:02:16]} 23. f3 {[%clk 0:02:32]}  Nh4 {[%clk 0:02:09]} 24. Rg1 {[%clk 0:02:30]}  Nf5 {[%clk 0:02:09]} 25. Nc6 {[%clk 0:02:26]}  Ng3+ {[%clk 0:02:04]} 26. hxg3 {[%clk 0:02:21]}  fxg3 {[%clk 0:02:04]} 27. Re1 {[%clk 0:02:17]}  Qh4+ {[%clk 0:02:04]} 28. Kg1 {[%clk 0:02:17]}  Qh2+ {[%clk 0:02:04]} 29. Kf1 {[%clk 0:02:17]}  Qh1# {[%clk 0:02:04]} 0-1


[Site "https://www.chess.com"]

[Event "Titled Tuesday Blitz January 31 Late 2023"]
[White "Womacka, Mathias"]
[Black "Torres Dominguez, David"]
[WhiteFideId "4611390"]
[BlackFideId "2220857"]
[WhiteElo "2396"]
[BlackElo "1994"]
[Result "1-0"]
[Round "11"]
[TimeControl "180+2"]
[Date "2023.02.01"]
[WhiteClock "0:00:02"]
[BlackClock "0:00:02"]

1. e4 {[%clk 0:03:00]}  Nc6 {[%clk 0:02:59]} 2. Nf3 {[%clk 0:02:59]}  e5 {[%clk 0:02:59]} 3. Bb5 {[%clk 0:02:59]}  Nge7 {[%clk 0:02:58]} 4. Nc3 {[%clk 0:02:58]}  g6 {[%clk 0:02:58]} 5. d4 {[%clk 0:02:56]}  exd4 {[%clk 0:02:58]} 6. Nd5 {[%clk 0:02:56]}  Bg7 {[%clk 0:02:54]} 7. Bg5 {[%clk 0:02:56]}  h6 {[%clk 0:02:54]} 8. Bf6 {[%clk 0:02:55]}  Bxf6 {[%clk 0:02:55]} 9. Nxf6+ {[%clk 0:02:54]}  Kf8 {[%clk 0:02:55]} 10. O-O {[%clk 0:02:53]}  a6 {[%clk 0:02:20]} 11. Bxc6 {[%clk 0:02:16]}  Nxc6 {[%clk 0:01:56]} 12. Nd5 {[%clk 0:02:14]}  Kg7 {[%clk 0:01:52]} 13. Nxd4 {[%clk 0:02:12]}  d6 {[%clk 0:01:51]} 14. Nxc6 {[%clk 0:02:08]}  bxc6 {[%clk 0:01:51]} 15. Qd4+ {[%clk 0:02:09]}  f6 {[%clk 0:01:51]} 16. Ne3 {[%clk 0:02:03]}  c5 {[%clk 0:01:44]} 17. Qc3 {[%clk 0:01:58]}  Bb7 {[%clk 0:01:35]} 18. f3 {[%clk 0:01:58]}  Qe7 {[%clk 0:01:34]} 19. Rad1 {[%clk 0:01:57]}  Qe5 {[%clk 0:01:31]} 20. Qa5 {[%clk 0:01:48]}  Qe7 {[%clk 0:01:25]} 21. Nd5 {[%clk 0:01:34]}  Bxd5 {[%clk 0:01:24]} 22. Rxd5 {[%clk 0:01:34]}  Rab8 {[%clk 0:01:19]} 23. b3 {[%clk 0:01:31]}  Rhe8 {[%clk 0:01:14]} 24. Rfd1 {[%clk 0:01:17]}  c4 {[%clk 0:01:13]} 25. Qxa6 {[%clk 0:01:11]}  cxb3 {[%clk 0:01:10]} 26. axb3 {[%clk 0:01:12]}  Qd7 {[%clk 0:00:59]} 27. Qc4 {[%clk 0:01:09]}  Rb7 {[%clk 0:00:55]} 28. Qd4 {[%clk 0:01:05]}  Reb8 {[%clk 0:00:45]} 29. h3 {[%clk 0:01:03]}  Rb4 {[%clk 0:00:44]} 30. Qc3 {[%clk 0:01:01]}  Qe7 {[%clk 0:00:41]} 31. Ra1 {[%clk 0:00:57]}  R4b7 {[%clk 0:00:38]} 32. Ra6 {[%clk 0:00:52]}  Rb6 {[%clk 0:00:36]} 33. Rxb6 {[%clk 0:00:50]}  Rxb6 {[%clk 0:00:37]} 34. Ra5 {[%clk 0:00:45]}  Rb7 {[%clk 0:00:36]} 35. Ra8 {[%clk 0:00:40]}  c5 {[%clk 0:00:35]} 36. Qc4 {[%clk 0:00:36]}  Qf7 {[%clk 0:00:30]} 37. Qxf7+ {[%clk 0:00:36]}  Kxf7 {[%clk 0:00:31]} 38. Kf2 {[%clk 0:00:33]}  h5 {[%clk 0:00:30]} 39. Ke3 {[%clk 0:00:32]}  Rb4 {[%clk 0:00:31]} 40. h4 {[%clk 0:00:25]}  Rd4 {[%clk 0:00:30]} 41. Ra7+ {[%clk 0:00:20]}  Ke6 {[%clk 0:00:30]} 42. Rg7 {[%clk 0:00:19]}  Rd1 {[%clk 0:00:28]} 43. Rxg6 {[%clk 0:00:19]}  Rh1 {[%clk 0:00:27]} 44. g3 {[%clk 0:00:18]}  Rh2 {[%clk 0:00:28]} 45. Kd3 {[%clk 0:00:18]}  Rf2 {[%clk 0:00:26]} 46. f4 {[%clk 0:00:18]}  Rf3+ {[%clk 0:00:25]} 47. Kc4 {[%clk 0:00:19]}  Re3 {[%clk 0:00:24]} 48. Rh6 {[%clk 0:00:17]}  Rxe4+ {[%clk 0:00:23]} 49. Kb5 {[%clk 0:00:18]}  Re3 {[%clk 0:00:23]} 50. Rxh5 {[%clk 0:00:17]}  Rxg3 {[%clk 0:00:23]} 51. Rh8 {[%clk 0:00:16]}  Rg4 {[%clk 0:00:22]} 52. c3 {[%clk 0:00:14]}  Rxf4 {[%clk 0:00:22]} 53. b4 {[%clk 0:00:15]}  cxb4 {[%clk 0:00:21]} 54. cxb4 {[%clk 0:00:15]}  d5 {[%clk 0:00:19]} 55. Kc5 {[%clk 0:00:15]}  Rc4+ {[%clk 0:00:18]} 56. Kb5 {[%clk 0:00:14]}  f5 {[%clk 0:00:16]} 57. h5 {[%clk 0:00:14]}  Rh4 {[%clk 0:00:16]} 58. Kc5 {[%clk 0:00:13]}  f4 {[%clk 0:00:15]} 59. b5 {[%clk 0:00:11]}  Kd7 {[%clk 0:00:12]} 60. Kxd5 {[%clk 0:00:10]}  f3 {[%clk 0:00:12]} 61. Kc5 {[%clk 0:00:06]}  f2 {[%clk 0:00:12]} 62. Rf8 {[%clk 0:00:06]}  Rxh5+ {[%clk 0:00:11]} 63. Kb6 {[%clk 0:00:06]}  Rh6+ {[%clk 0:00:10]} 64. Kb7 {[%clk 0:00:06]}  Rh2 {[%clk 0:00:09]} 65. b6 {[%clk 0:00:06]}  Ke7 {[%clk 0:00:05]} 66. Rf3 {[%clk 0:00:05]}  Kd8 {[%clk 0:00:04]} 67. Kb8 {[%clk 0:00:05]}  Kd7 {[%clk 0:00:03]} 68. b7 {[%clk 0:00:05]}  Rh8+ {[%clk 0:00:02]} 69. Ka7 {[%clk 0:00:05]}  Kc6 {[%clk 0:00:02]} 70. b8=Q {[%clk 0:00:02]} 1-0


[Site "https://www.chess.com"]

[Event "Titled Tuesday Blitz January 31 Late 2023"]
[White "Marczuk, Dominik"]
[Black "Gerbelli Neto, Eduardo"]
[WhiteFideId "1111264"]
[BlackFideId "2103281"]
[WhiteElo "2253"]
[BlackElo "2114"]
[Result "1-0"]
[Round "11"]
[TimeControl "180+2"]
[Date "2023.02.01"]
[WhiteClock "0:01:43"]
[BlackClock "0:00:14"]

1. e4 {[%clk 0:03:00]}  e5 {[%clk 0:02:59]} 2. Nf3 {[%clk 0:02:56]}  Nc6 {[%clk 0:02:59]} 3. Bc4 {[%clk 0:02:57]}  Nf6 {[%clk 0:02:58]} 4. d3 {[%clk 0:02:58]}  Bc5 {[%clk 0:02:58]} 5. O-O {[%clk 0:02:58]}  d6 {[%clk 0:02:58]} 6. c3 {[%clk 0:02:58]}  a5 {[%clk 0:02:59]} 7. Bb3 {[%clk 0:02:58]}  O-O {[%clk 0:02:59]} 8. Nbd2 {[%clk 0:02:58]}  Be6 {[%clk 0:02:55]} 9. Bc2 {[%clk 0:02:58]}  h6 {[%clk 0:02:55]} 10. h3 {[%clk 0:02:58]}  b5 {[%clk 0:02:44]} 11. Re1 {[%clk 0:02:58]}  Qb8 {[%clk 0:02:43]} 12. Nf1 {[%clk 0:02:58]}  Qa7 {[%clk 0:02:44]} 13. Qe2 {[%clk 0:02:58]}  a4 {[%clk 0:02:42]} 14. a3 {[%clk 0:02:57]}  Rfe8 {[%clk 0:02:38]} 15. Ng3 {[%clk 0:02:57]}  d5 {[%clk 0:02:30]} 16. Nh4 {[%clk 0:02:57]}  dxe4 {[%clk 0:02:20]} 17. dxe4 {[%clk 0:02:57]}  Bc4 {[%clk 0:02:20]} 18. Qf3 {[%clk 0:02:58]}  Nh7 {[%clk 0:02:15]} 19. Nhf5 {[%clk 0:02:52]}  Re6 {[%clk 0:02:08]} 20. Nh5 {[%clk 0:02:46]}  Rg6 {[%clk 0:01:59]} 21. Nh4 {[%clk 0:02:43]}  Ng5 {[%clk 0:01:48]} 22. Bxg5 {[%clk 0:02:17]}  Rxg5 {[%clk 0:01:47]} 23. Ng3 {[%clk 0:02:10]}  Rd8 {[%clk 0:01:33]} 24. Rad1 {[%clk 0:02:10]}  Rd6 {[%clk 0:01:15]} 25. Rxd6 {[%clk 0:02:08]}  cxd6 {[%clk 0:01:16]} 26. Rd1 {[%clk 0:02:07]}  Ne7 {[%clk 0:01:06]} 27. Bd3 {[%clk 0:02:03]}  Bb3 {[%clk 0:01:01]} 28. Rd2 {[%clk 0:02:01]}  Bc4 {[%clk 0:00:57]} 29. Bxc4 {[%clk 0:02:00]}  bxc4 {[%clk 0:00:58]} 30. Ngf5 {[%clk 0:01:56]}  Nxf5 {[%clk 0:00:50]} 31. exf5 {[%clk 0:01:57]}  Kh7 {[%clk 0:00:42]} 32. Qe4 {[%clk 0:01:56]}  f6 {[%clk 0:00:37]} 33. Qxc4 {[%clk 0:01:55]}  Qc7 {[%clk 0:00:30]} 34. Qe4 {[%clk 0:01:49]}  Qb6 {[%clk 0:00:27]} 35. g4 {[%clk 0:01:47]}  h5 {[%clk 0:00:26]} 36. Nf3 {[%clk 0:01:43]}  hxg4 {[%clk 0:00:21]} 37. Nxg5+ {[%clk 0:01:43]}  fxg5 {[%clk 0:00:22]} 38. hxg4 {[%clk 0:01:44]}  Kh6 {[%clk 0:00:14]} 39. Kg2 {[%clk 0:01:43]} 1-0


[Site "https://www.chess.com"]

[Event "Titled Tuesday Blitz January 31 Late 2023"]
[White "Hajiyev, Kanan"]
[Black "Fernandez Siles, Luis"]
[WhiteFideId "13404148"]
[BlackFideId "2209420"]
[WhiteElo "2197"]
[BlackElo "2218"]
[Result "0-1"]
[Round "11"]
[TimeControl "180+2"]
[Date "2023.02.01"]
[WhiteClock "0:00:05"]
[BlackClock "0:01:04"]

1. d4 {[%clk 0:03:00]}  Nf6 {[%clk 0:02:59]} 2. Nf3 {[%clk 0:02:57]}  g6 {[%clk 0:02:59]} 3. g3 {[%clk 0:02:53]}  Bg7 {[%clk 0:02:59]} 4. Bg2 {[%clk 0:02:46]}  O-O {[%clk 0:02:59]} 5. O-O {[%clk 0:02:42]}  d6 {[%clk 0:02:59]} 6. b3 {[%clk 0:02:42]}  Ne4 {[%clk 0:02:56]} 7. Bb2 {[%clk 0:02:40]}  f5 {[%clk 0:02:55]} 8. Nbd2 {[%clk 0:02:40]}  Nxd2 {[%clk 0:02:54]} 9. Qxd2 {[%clk 0:02:41]}  Nc6 {[%clk 0:02:54]} 10. c4 {[%clk 0:02:41]}  Qe8 {[%clk 0:02:48]} 11. d5 {[%clk 0:02:41]}  Ne5 {[%clk 0:02:48]} 12. Nxe5 {[%clk 0:02:38]}  dxe5 {[%clk 0:02:47]} 13. e4 {[%clk 0:02:38]}  f4 {[%clk 0:02:47]} 14. f3 {[%clk 0:02:20]}  g5 {[%clk 0:02:40]} 15. g4 {[%clk 0:02:16]}  h5 {[%clk 0:02:34]} 16. h3 {[%clk 0:02:16]}  a5 {[%clk 0:02:34]} 17. c5 {[%clk 0:02:13]}  Ra6 {[%clk 0:02:31]} 18. Kf2 {[%clk 0:02:11]}  Qb5 {[%clk 0:02:19]} 19. Rac1 {[%clk 0:01:40]}  a4 {[%clk 0:02:07]} 20. b4 {[%clk 0:01:38]}  a3 {[%clk 0:02:07]} 21. Bc3 {[%clk 0:01:33]}  Rh6 {[%clk 0:02:03]} 22. Rh1 {[%clk 0:01:24]}  Bf6 {[%clk 0:01:59]} 23. Qe2 {[%clk 0:01:19]}  Qa4 {[%clk 0:01:55]} 24. Qc4 {[%clk 0:01:15]}  Kg7 {[%clk 0:01:49]} 25. Qb3 {[%clk 0:00:57]}  Qb5 {[%clk 0:01:48]} 26. Bf1 {[%clk 0:00:58]}  Qe8 {[%clk 0:01:43]} 27. Bg2 {[%clk 0:00:42]}  Rfh8 {[%clk 0:01:38]} 28. Qxa3 {[%clk 0:00:40]}  hxg4 {[%clk 0:01:38]} 29. hxg4 {[%clk 0:00:40]}  Rh2 {[%clk 0:01:38]} 30. Qb2 {[%clk 0:00:25]}  R8h3 {[%clk 0:01:26]} 31. Bxe5 {[%clk 0:00:20]}  Qh8 {[%clk 0:01:26]} 32. Rxh2 {[%clk 0:00:16]}  Rxh2 {[%clk 0:01:24]} 33. Bxf6+ {[%clk 0:00:14]}  exf6 {[%clk 0:01:24]} 34. Kg1 {[%clk 0:00:05]}  Bxg4 {[%clk 0:01:04]} 0-1


[Site "https://www.chess.com"]

[Event "Titled Tuesday Blitz January 31 Late 2023"]
[White "Matko, Ognjen"]
[Black "Gomes, Luiz Alexandre de Souza"]
[WhiteFideId "14509717"]
[BlackFideId "2102790"]
[WhiteElo "2295"]
[BlackElo "2254"]
[Result "0-1"]
[Round "11"]
[TimeControl "180+2"]
[Date "2023.02.01"]
[WhiteClock "0:00:01"]
[BlackClock "0:00:52"]

1. Nf3 {[%clk 0:03:00]}  d5 {[%clk 0:02:58]} 2. g3 {[%clk 0:02:59]}  Nf6 {[%clk 0:02:58]} 3. Bg2 {[%clk 0:03:00]}  Bf5 {[%clk 0:02:58]} 4. c4 {[%clk 0:02:59]}  e6 {[%clk 0:02:58]} 5. O-O {[%clk 0:02:58]}  c6 {[%clk 0:02:58]} 6. d4 {[%clk 0:02:59]}  Be7 {[%clk 0:02:58]} 7. Nc3 {[%clk 0:02:59]}  O-O {[%clk 0:02:58]} 8. Qb3 {[%clk 0:02:58]}  Qb6 {[%clk 0:02:55]} 9. c5 {[%clk 0:02:58]}  Qxb3 {[%clk 0:02:56]} 10. axb3 {[%clk 0:02:59]}  Nbd7 {[%clk 0:02:56]} 11. b4 {[%clk 0:02:57]}  a6 {[%clk 0:02:57]} 12. Nh4 {[%clk 0:02:52]}  Bc2 {[%clk 0:02:54]} 13. Re1 {[%clk 0:02:47]}  e5 {[%clk 0:02:52]} 14. e3 {[%clk 0:02:44]}  exd4 {[%clk 0:02:52]} 15. exd4 {[%clk 0:02:43]}  Rfe8 {[%clk 0:02:53]} 16. Bd2 {[%clk 0:02:31]}  g6 {[%clk 0:02:51]} 17. Bh3 {[%clk 0:02:28]}  Bf8 {[%clk 0:02:48]} 18. Nf3 {[%clk 0:02:23]}  h6 {[%clk 0:02:42]} 19. Rac1 {[%clk 0:02:12]}  Bd3 {[%clk 0:02:41]} 20. Ne5 {[%clk 0:01:58]}  Nxe5 {[%clk 0:02:39]} 21. dxe5 {[%clk 0:01:59]}  Ne4 {[%clk 0:02:39]} 22. Nxe4 {[%clk 0:01:47]}  Bxe4 {[%clk 0:02:39]} 23. f4 {[%clk 0:01:29]}  h5 {[%clk 0:02:29]} 24. Bc3 {[%clk 0:01:27]}  Rad8 {[%clk 0:02:21]} 25. Bd4 {[%clk 0:01:26]}  Ra8 {[%clk 0:02:19]} 26. Ra1 {[%clk 0:01:24]}  Bh6 {[%clk 0:01:59]} 27. Kf2 {[%clk 0:01:21]}  g5 {[%clk 0:01:58]} 28. Be3 {[%clk 0:01:17]}  gxf4 {[%clk 0:01:58]} 29. gxf4 {[%clk 0:01:17]}  Kh7 {[%clk 0:01:58]} 30. Rg1 {[%clk 0:01:14]}  Rg8 {[%clk 0:01:58]} 31. f5 {[%clk 0:01:09]}  Bxe3+ {[%clk 0:01:53]} 32. Kxe3 {[%clk 0:01:10]}  Rae8 {[%clk 0:01:40]} 33. Kf4 {[%clk 0:01:08]}  Bd3 {[%clk 0:01:23]} 34. f6 {[%clk 0:01:05]}  Bg6 {[%clk 0:01:17]} 35. Rad1 {[%clk 0:00:55]}  Rd8 {[%clk 0:01:17]} 36. Rd4 {[%clk 0:00:54]}  Rge8 {[%clk 0:01:16]} 37. Rg5 {[%clk 0:00:54]}  Kh6 {[%clk 0:01:14]} 38. Bf1 {[%clk 0:00:45]}  Ra8 {[%clk 0:01:12]} 39. h4 {[%clk 0:00:43]}  a5 {[%clk 0:01:12]} 40. b5 {[%clk 0:00:43]}  a4 {[%clk 0:01:12]} 41. bxc6 {[%clk 0:00:32]}  bxc6 {[%clk 0:01:12]} 42. Bh3 {[%clk 0:00:27]}  Reb8 {[%clk 0:01:09]} 43. Bd7 {[%clk 0:00:24]}  Ra6 {[%clk 0:01:06]} 44. e6 {[%clk 0:00:23]}  fxe6 {[%clk 0:01:06]} 45. Bxe6 {[%clk 0:00:24]}  Rxb2 {[%clk 0:01:03]} 46. Ke5 {[%clk 0:00:22]}  Rf2 {[%clk 0:00:59]} 47. Rf4 {[%clk 0:00:20]}  Rxf4 {[%clk 0:00:56]} 48. Kxf4 {[%clk 0:00:21]}  a3 {[%clk 0:00:57]} 49. f7 {[%clk 0:00:20]}  Bxf7 {[%clk 0:00:56]} 50. Bxf7 {[%clk 0:00:20]}  a2 {[%clk 0:00:57]} 51. Kf5 {[%clk 0:00:04]}  a1=Q {[%clk 0:00:56]} 52. Rxh5+ {[%clk 0:00:01]}  Kg7 {[%clk 0:00:56]} 53. Be6 {[%clk 0:00:01]}  Qf1+ {[%clk 0:00:52]} 0-1


[Site "https://www.chess.com"]